bitfinex/quotes_BTCUSD_20240611
["timestamp","ask_amount","ask_price","bid_price","bid_amount"]
[1718089720405,0.22,67750.0,67746.0,0.02306642]
[1718089720612,0.001,67753.0,67746.0,0.02306642]
[1718089720975,0.001,67753.0,67752.0,0.04402292]
[1718089721189,0.001,67753.0,67752.0,0.33978934]
[1718089721393,0.10086,67759.0,67752.0,0.39576642]
[1718089721564,0.00086,67759.0,67753.0,0.1]
[1718089721788,0.00086,67759.0,67757.0,0.04400643]
[1718089722000,0.00086,67759.0,67758.0,0.02306642]
[1718089722393,0.00086,67759.0,67758.0,0.06705571]
[1718089722571,0.08616,67759.0,67758.0,0.16656842]
[1718089722782,0.08616,67759.0,67758.0,0.12306642]
[1718089722992,0.08616,67759.0,67758.0,0.28854794]
[1718089723216,0.08616,67759.0,67758.0,0.24455842]
[1718089723414,0.08616,67759.0,67758.0,0.12306642]
[1718089723818,0.08616,67759.0,67758.0,0.12806642]
[1718089724021,0.08616,67759.0,67758.0,0.02806642]
[1718089724176,0.08616,67759.0,67758.0,0.13506642]
[1718089724573,0.30616,67759.0,67758.0,0.12806642]
[1718089724832,0.18616,67759.0,67758.0,0.12806642]
[1718089725059,0.18616,67759.0,67758.0,0.13506642]
[1718089725452,0.18616,67759.0,67758.0,0.03506642]
[1718089725659,0.40616,67759.0,67758.0,0.03506642]
[1718089726062,0.30616,67759.0,67758.0,0.03506642]
[1718089726219,0.18616,67759.0,67758.0,0.03506642]
[1718089726416,0.18616,67759.0,67758.0,0.012]
[1718089726622,0.40616,67759.0,67758.0,0.012]
[1718089730353,0.30616,67759.0,67758.0,0.012]
[1718089730554,0.40616,67759.0,67758.0,0.012]
[1718089731834,0.86516,67759.0,67758.0,0.012]
[1718089732277,0.86516,67759.0,67758.0,0.03803921]
[1718089732488,0.86516,67759.0,67758.0,0.012]
[1718089734026,0.76516,67759.0,67758.0,0.012]
[1718089734288,0.86516,67759.0,67758.0,0.012]
[1718089736938,0.40616,67759.0,67758.0,0.012]
[1718089738252,0.10086,67759.0,67758.0,0.012]
[1718089738472,0.32086,67759.0,67758.0,0.012]
[1718089739620,0.32086,67759.0,67758.0,0.112]
[1718089740519,0.11086,67759.0,67758.0,0.112]
[1718089740725,0.32086,67759.0,67758.0,0.012]
[1718089742209,0.22086,67759.0,67758.0,0.012]
[1718089742624,0.32086,67759.0,67758.0,0.012]
[1718089745448,0.32086,67759.0,67758.0,0.03849872]
[1718089745655,0.32086,67759.0,67758.0,0.012]
[1718089746314,0.10086,67759.0,67758.0,0.012]
[1718089748262,0.00086,67759.0,67758.0,0.012]
[1718089748675,0.00086,67759.0,67758.0,0.57795938]
[1718089748888,0.00086,67759.0,67758.0,0.67795938]
[1718089749104,0.00086,67759.0,67758.0,0.13505938]
[1718089749542,0.22086,67759.0,67758.0,0.13505938]
[1718089750018,0.22086,67759.0,67758.0,0.03505938]
[1718089750256,0.22086,67759.0,67758.0,0.13505938]
[1718089751353,0.22086,67759.0,67758.0,0.03505938]
[1718089751568,0.00086,67759.0,67758.0,0.03505938]
[1718089751783,0.22086,67759.0,67758.0,0.03505938]
[1718089751988,0.22086,67759.0,67758.0,0.13505938]
[1718089752197,0.22086,67759.0,67758.0,0.29252738]
[1718089752435,0.22086,67759.0,67758.0,0.27252738]
[1718089752679,0.22086,67759.0,67758.0,0.23952738]
[1718089752922,0.00086,67759.0,67758.0,0.44352738]
[1718089753384,0.00086,67759.0,67758.0,0.34852738]
[1718089753609,0.00086,67759.0,67758.0,0.23952738]
[1718089754063,0.01086,67759.0,67758.0,0.23952738]
[1718089754511,0.00086,67759.0,67758.0,0.13505938]
[1718089754734,0.01086,67759.0,67758.0,0.03505938]
[1718089754966,0.00086,67759.0,67758.0,0.18223238]
[1718089755185,0.00086,67759.0,67758.0,0.13505938]
[1718089755447,0.00086,67759.0,67758.0,0.65173238]
[1718089755675,0.00086,67759.0,67758.0,0.68037232]
[1718089755927,0.00707925,67760.0,67758.0,0.68037232]
[1718089756140,0.00707925,67760.0,67759.0,0.12305938]
[1718089756385,0.00707925,67760.0,67759.0,0.61946438]
[1718089758130,0.00707925,67760.0,67759.0,0.69029941]
[1718089758503,0.00707925,67760.0,67759.0,0.68533131]
[1718089758943,0.00707925,67760.0,67759.0,0.69033131]
[1718089759605,0.00707925,67760.0,67759.0,0.62446438]
[1718089760044,0.00707925,67760.0,67759.0,0.61946438]
[1718089760286,0.00707925,67760.0,67759.0,0.62646438]
[1718089760725,0.00707925,67760.0,67759.0,0.63146438]
[1718089760925,0.00707925,67760.0,67759.0,0.62646438]
[1718089761405,0.00707925,67760.0,67759.0,0.63146438]
[1718089761613,0.00707925,67760.0,67759.0,0.61946438]
[1718089761823,0.00707925,67760.0,67759.0,0.63146438]
[1718089762178,0.009427,67764.0,67759.0,0.63146438]
[1718089762388,0.009427,67764.0,67760.0,0.02305938]
[1718089762557,0.009427,67764.0,67760.0,0.84688238]
[1718089762773,0.009427,67764.0,67761.0,0.12305938]
[1718089762979,0.009427,67764.0,67762.0,0.02305938]
[1718089763602,0.314727,67764.0,67762.0,0.02305938]
[1718089763825,0.094727,67764.0,67762.0,0.02305938]
[1718089764302,0.094727,67764.0,67763.0,0.02305938]
[1718089764786,0.009427,67764.0,67763.0,0.02305938]
[1718089766114,0.009427,67764.0,67763.0,0.03005938]
[1718089766275,0.009427,67764.0,67763.0,0.09593622]
[1718089766687,0.009427,67764.0,67763.0,0.10093622]
[1718089766887,0.009427,67764.0,67763.0,0.20093622]
[1718089767939,0.009427,67764.0,67763.0,0.13505938]
[1718089768825,0.009427,67764.0,67763.0,0.22289517]
[1718089769292,0.009427,67764.0,67763.0,0.49309517]
[1718089769722,0.009427,67764.0,67763.0,0.22289517]
[1718089770163,0.009427,67768.0,67763.0,0.22289517]
[1718089770367,0.029427,67768.0,67766.0,0.04386081]
[1718089770574,0.009427,67768.0,67767.0,0.06692019]
[1718089770785,0.229427,67768.0,67767.0,0.16692019]
[1718089770992,0.314727,67768.0,67767.0,0.16692019]
[1718089771203,1.116927,67768.0,67767.0,0.12305938]
[1718089771420,1.216927,67768.0,67767.0,0.12305938]
[1718089771871,1.216927,67768.0,67763.0,0.1]
[1718089771872,0.22,67764.0,67763.0,0.1]
[1718089772078,0.22,67761.0,67760.0,0.04386081]
[1718089772286,0.22,67761.0,67760.0,0.06691874]
[1718089773596,0.00086,67764.0,67760.0,0.06691874]
[1718089773597,0.02086,67764.0,67760.0,0.09408001]
[1718089773827,0.22086,67764.0,67761.0,0.02305793]
[1718089774046,0.22086,67764.0,67761.0,0.12305793]
[1718089774249,0.22086,67764.0,67762.0,0.02305793]
[1718089774460,0.22,67763.0,67762.0,0.02305793]
[1718089775307,0.22,67762.0,67761.0,0.02305793]
[1718089775515,0.22,67761.0,67760.0,0.17602208]
[1718089775773,0.22,67761.0,67760.0,0.19907989]
[1718089776013,0.3201,67761.0,67760.0,0.19907989]
[1718089776226,0.3201,67761.0,67760.0,0.15021908]
[1718089776227,0.5401,67761.0,67760.0,0.15021908]
[1718089776441,0.5401,67761.0,67760.0,0.19410486]
[1718089776706,0.9935,67761.0,67760.0,0.19410486]
[1718089777169,0.9935,67761.0,67760.0,0.19910486]
[1718089777611,0.9935,67761.0,67760.0,0.20610486]
[1718089778952,0.9935,67761.0,67760.0,0.22892354]
[1718089779172,1.44371993,67761.0,67760.0,0.05787649]
[1718089779395,1.35841993,67761.0,67760.0,0.03481868]
[1718089779625,1.44371993,67761.0,67760.0,0.03481868]
[1718089779858,1.44371993,67761.0,67760.0,0.012]
[1718089780081,1.35841993,67761.0,67760.0,0.007]
[1718089780315,0.8163,67760.0,67759.0,0.000946]
[1718089781580,0.8163,67760.0,67759.0,0.007946]
[1718089782475,0.10086,67764.0,67759.0,0.007946]
[1718089782476,0.4522,67763.0,67759.0,0.007946]
[1718089782689,0.22086,67764.0,67759.0,0.007946]
[1718089782900,0.22086,67764.0,67760.0,0.02305959]
[1718089782901,0.22,67763.0,67760.0,0.02305959]
[1718089783968,0.22,67761.0,67760.0,0.02305959]
[1718089784187,0.22,67761.0,67760.0,0.02805959]
[1718089784617,0.22,67761.0,67760.0,0.13505959]
[1718089784818,0.22,67761.0,67760.0,0.03505959]
[1718089785240,0.22,67761.0,67760.0,0.02805959]
[1718089785464,0.22,67761.0,67760.0,0.03505959]
[1718089785896,0.22,67761.0,67760.0,0.03005959]
[1718089786313,0.22,67761.0,67760.0,0.03505959]
[1718089786741,0.22,67761.0,67760.0,0.03005959]
[1718089786946,0.22,67761.0,67760.0,0.03505959]
[1718089787169,0.22,67761.0,67760.0,0.02805959]
[1718089787375,0.22,67761.0,67760.0,0.03505959]
[1718089794608,0.20086,67764.0,67760.0,0.03505959]
[1718089794845,0.22086,67764.0,67761.0,0.02305959]
[1718089795089,0.22,67762.0,67761.0,0.02305959]
[1718089795302,0.22,67763.0,67761.0,0.166993]
[1718089795520,0.22086,67764.0,67762.0,0.02305959]
[1718089795773,0.22,67763.0,67762.0,0.02305959]
[1718089796196,0.9791,67763.0,67762.0,0.02305959]
[1718089796425,0.9791,67763.0,67760.0,0.012]
[1718089796426,0.43,67761.0,67760.0,0.007]
[1718089796636,0.02,67760.0,67759.0,0.000946]
[1718089796849,1.35621993,67760.0,67759.0,0.000946]
[1718089797944,1.35621993,67760.0,67759.0,0.007946]
[1718089798360,1.44151993,67760.0,67759.0,0.007946]
[1718089800238,1.44151993,67760.0,67759.0,0.000946]
[1718089800448,1.35621993,67760.0,67759.0,0.000946]
[1718089800684,1.35621993,67760.0,67759.0,0.008946]
[1718089800884,1.44151993,67760.0,67759.0,0.013946]
[1718089801375,1.44151993,67760.0,67759.0,0.008946]
[1718089801802,1.44151993,67760.0,67759.0,0.013946]
[1718089801803,1.64151993,67760.0,67759.0,0.013946]
[1718089802074,1.66451993,67760.0,67759.0,0.013946]
[1718089802767,1.34621993,67760.0,67759.0,0.013946]
[1718089802983,1.0019,67760.0,67759.0,0.013946]
[1718089803199,1.24621993,67760.0,67759.0,0.013946]
[1718089803427,1.34151993,67760.0,67759.0,0.013946]
[1718089804104,1.34151993,67760.0,67759.0,0.000946]
[1718089804575,1.44151993,67760.0,67759.0,0.013946]
[1718089804803,1.34621993,67760.0,67759.0,0.013946]
[1718089805037,1.44151993,67760.0,67759.0,0.005946]
[1718089805256,1.44151993,67760.0,67759.0,0.013946]
[1718089805708,1.35621993,67760.0,67759.0,0.013946]
[1718089805940,1.44151993,67760.0,67759.0,0.013946]
[1718089806627,1.34621993,67760.0,67759.0,0.013946]
[1718089806865,1.43151993,67760.0,67759.0,0.000946]
[1718089807085,1.34621993,67760.0,67759.0,0.000946]
[1718089807362,1.34621993,67760.0,67759.0,0.005946]
[1718089807363,0.1,67760.0,67759.0,0.005946]
[1718089807573,0.4053,67760.0,67759.0,0.000946]
[1718089807797,0.4053,67760.0,67759.0,0.007946]
[1718089808016,0.4053,67760.0,67759.0,0.012946]
[1718089808239,0.4053,67760.0,67759.0,0.000946]
[1718089808463,0.5053,67760.0,67759.0,0.000946]
[1718089808699,0.4053,67760.0,67759.0,0.012946]
[1718089808932,0.5053,67760.0,67759.0,0.012946]
[1718089809889,0.5053,67760.0,67759.0,0.005946]
[1718089810105,0.5053,67760.0,67759.0,0.000946]
[1718089810321,0.42,67760.0,67759.0,0.007946]
[1718089810531,0.5053,67760.0,67759.0,0.007946]
[1718089811000,0.5053,67760.0,67759.0,0.012946]
[1718089811226,1.43821993,67760.0,67759.0,0.012946]
[1718089812095,1.12291993,67760.0,67759.0,0.012946]
[1718089812329,0.24431993,67760.0,67759.0,0.012946]
[1718089812548,0.5053,67760.0,67759.0,0.012946]
[1718089813685,0.2,67761.0,67759.0,0.012946]
[1718089813904,0.1,67762.0,67759.0,0.012946]
[1718089814126,0.0853,67763.0,67759.0,0.012946]
[1718089814556,0.0853,67760.0,67759.0,0.012946]
[1718089814739,0.0853,67760.0,67759.0,0.000946]
[1718089814969,0.0853,67760.0,67759.0,0.007946]
[1718089815192,0.0853,67760.0,67759.0,0.012946]
[1718089815421,0.0853,67760.0,67759.0,0.007946]
[1718089816274,0.22,67761.0,67759.0,0.000946]
[1718089816516,0.22,67760.0,67759.0,0.000946]
[1718089816736,0.2,67760.0,67759.0,0.007946]
[1718089816948,0.22,67760.0,67759.0,0.012946]
[1718089817161,0.00086,67764.0,67759.0,0.007946]
[1718089817433,0.00086,67764.0,67760.0,0.2702]
[1718089817653,0.00086,67764.0,67762.0,0.2727]
[1718089817885,0.00086,67764.0,67763.0,0.12305698]
[1718089819927,0.00086,67764.0,67763.0,0.16690504]
[1718089820389,0.00086,67764.0,67763.0,0.17190504]
[1718089820607,0.00086,67764.0,67763.0,0.17390504]
[1718089821167,0.009427,67772.0,67763.0,0.40075698]
[1718089821399,0.0853,67769.0,67765.0,0.0438434]
[1718089821598,0.0853,67769.0,67766.0,0.02305698]
[1718089822460,0.0853,67771.0,67766.0,0.02305698]
[1718089822892,0.0853,67771.0,67765.0,0.02305698]
[1718089823179,0.0853,67771.0,67766.0,0.02305698]
[1718089823446,0.3053,67771.0,67765.0,0.16025698]
[1718089823725,0.0853,67771.0,67766.0,0.13005698]
[1718089823964,0.07215996,67768.0,67767.0,0.02305698]
[1718089824194,0.3053,67767.0,67766.0,0.105]
[1718089824604,0.3053,67767.0,67766.0,0.112]
[1718089825112,0.31177446,67767.0,67766.0,0.105]
[1718089825535,0.00647446,67767.0,67766.0,0.105]
[1718089825757,0.09177446,67767.0,67766.0,0.105]
[1718089825979,0.29177446,67767.0,67766.0,0.005]
[1718089826192,0.22,67765.0,67764.0,0.01807387]
[1718089826684,0.00659698,67765.0,67759.0,0.01277171]
[1718089827100,0.0853,67762.0,67759.0,0.01277171]
[1718089827521,0.00659362,67761.0,67759.0,0.01277171]
[1718089828133,0.00659362,67761.0,67759.0,0.01977171]
[1718089828817,0.00659362,67761.0,67759.0,0.01277171]
[1718089829705,0.00659362,67761.0,67759.0,0.03506992]
[1718089829885,0.00659362,67761.0,67760.0,0.02305673]
[1718089830126,0.00659362,67761.0,67760.0,0.06690013]
[1718089830331,0.0853,67763.0,67760.0,0.06690013]
[1718089830544,0.00659362,67761.0,67760.0,0.0438434]
[1718089830789,0.0853,67763.0,67760.0,0.06689982]
[1718089831014,0.00659343,67761.0,67760.0,0.0438434]
[1718089831246,0.0853,67763.0,67760.0,0.07389982]
[1718089831688,0.00855568,67762.0,67761.0,0.02305642]
[1718089832305,0.00855568,67762.0,67760.0,0.02305642]
[1718089832518,0.00855568,67762.0,67760.0,0.02805642]
[1718089832806,0.00855568,67762.0,67761.0,0.02305642]
[1718089833045,0.00855568,67762.0,67761.0,0.005]
[1718089833267,0.22855568,67762.0,67761.0,0.02305642]
[1718089833495,0.22855568,67762.0,67760.0,0.007]
[1718089833496,0.691,67761.0,67760.0,0.007]
[1718089833703,0.691,67761.0,67760.0,0.012]
[1718089833922,0.22,67760.0,67759.0,0.000946]
[1718089834139,0.3053,67760.0,67759.0,0.000946]
[1718089834362,0.31385481,67760.0,67759.0,0.000946]
[1718089835287,0.31385481,67760.0,67759.0,0.007946]
[1718089835716,0.63375481,67760.0,67759.0,0.007946]
[1718089836577,0.54845481,67760.0,67759.0,0.000946]
[1718089836803,0.63375481,67760.0,67759.0,0.007946]
[1718089837029,0.63375481,67760.0,67759.0,0.012946]
[1718089842441,0.64375481,67760.0,67759.0,0.012946]
[1718089842652,0.63375481,67760.0,67759.0,0.012946]
[1718089843505,0.64375481,67760.0,67759.0,0.012946]
[1718089843713,0.74375481,67760.0,67759.0,0.012946]
[1718089843929,0.73375481,67760.0,67759.0,0.012946]
[1718089845740,0.32855481,67760.0,67759.0,0.012946]
[1718089845953,0.30385481,67760.0,67759.0,0.012946]
[1718089846164,0.31385481,67760.0,67759.0,0.012946]
[1718089847194,0.22855481,67760.0,67759.0,0.012946]
[1718089847427,0.31385481,67760.0,67759.0,0.012946]
[1718089848337,0.20855481,67760.0,67759.0,0.012946]
[1718089848562,0.29385481,67760.0,67759.0,0.012946]
[1718089848765,0.31385481,67760.0,67759.0,0.012946]
[1718089848979,0.31385481,67760.0,67759.0,0.112946]
[1718089850535,0.00855481,67760.0,67759.0,0.385646]
[1718089850762,0.29385481,67760.0,67759.0,0.385646]
[1718089850992,0.2853,67760.0,67759.0,0.385646]
[1718089851230,0.31378089,67760.0,67759.0,0.385646]
[1718089851467,0.29378089,67760.0,67759.0,0.385646]
[1718089851682,0.31378089,67760.0,67759.0,0.385646]
[1718089852607,0.29378089,67760.0,67759.0,0.385646]
[1718089852889,0.09349251,67760.0,67759.0,0.112946]
[1718089853097,0.0853,67766.0,67759.0,0.385646]
[1718089853339,0.2,67760.0,67759.0,0.385646]
[1718089853568,0.0853,67760.0,67759.0,0.40870406]
[1718089853789,0.09662999,67760.0,67759.0,0.45264501]
[1718089854010,0.31662999,67760.0,67759.0,0.13600406]
[1718089854464,0.31662999,67760.0,67759.0,0.18117906]
[1718089854695,0.3053,67760.0,67759.0,0.28617906]
[1718089854951,0.3053,67760.0,67759.0,0.27320406]
[1718089855185,0.31663712,67760.0,67759.0,0.26120406]
[1718089855706,0.31663712,67760.0,67759.0,0.24819406]
[1718089855948,0.31663712,67760.0,67759.0,0.24119406]
[1718089856377,0.31663712,67760.0,67759.0,0.24819406]
[1718089856595,0.31663712,67760.0,67759.0,0.25319406]
[1718089857123,0.29663712,67760.0,67759.0,0.25319406]
[1718089857386,0.09663712,67760.0,67759.0,0.29713913]
[1718089857662,0.29663712,67760.0,67759.0,0.29713913]
[1718089858429,0.09663712,67760.0,67759.0,0.29713913]
[1718089862003,0.08931363,67760.0,67759.0,0.29713913]
[1718089862431,0.08931363,67760.0,67759.0,0.17994913]
[1718089862654,0.01133712,67760.0,67759.0,0.17994913]
[1718089862876,0.5734,67763.0,67759.0,0.17994913]
[1718089863141,0.4881,67763.0,67760.0,0.12305806]
[1718089863348,0.5734,67763.0,67761.0,0.02305806]
[1718089863574,0.0853,67763.0,67761.0,0.02305806]
[1718089863788,0.3052,67764.0,67761.0,0.02305806]
[1718089863999,0.2,67762.0,67761.0,0.02305806]
[1718089864217,0.2,67763.0,67761.0,0.02305806]
[1718089864448,0.3905,67764.0,67762.0,0.02305806]
[1718089864658,0.3905,67764.0,67760.0,0.02305806]
[1718089864880,0.0853,67764.0,67761.0,0.02805806]
[1718089865096,0.2,67767.0,67762.0,0.02305806]
[1718089865306,0.2,67767.0,67763.0,0.2702]
[1718089865522,0.2,67767.0,67764.0,0.12305806]
[1718089865707,0.2,67766.0,67764.0,0.12305806]
[1718089865921,0.2,67766.0,67765.0,0.02305806]
[1718089867605,0.0853,67768.0,67765.0,0.02305806]
[1718089867836,0.1,67769.0,67765.0,0.35210606]
[1718089868056,0.2,67767.0,67766.0,0.12305806]
[1718089868262,0.22,67767.0,67766.0,0.12305806]
[1718089868912,0.7104,67767.0,67766.0,0.12305806]
[1718089869338,0.4904,67767.0,67766.0,0.12305806]
[1718089869992,0.5757,67767.0,67766.0,0.12305806]
[1718089870414,0.5757,67767.0,67766.0,0.02305806]
[1718089870886,0.5757,67767.0,67766.0,0.005]
[1718089871097,0.5757,67767.0,67766.0,0.02805806]
[1718089871757,0.5757,67767.0,67766.0,0.03505806]
[1718089872829,0.7757,67767.0,67766.0,0.03505806]
[1718089873044,0.77541162,67767.0,67766.0,0.03505806]
[1718089873908,0.57541162,67767.0,67766.0,0.03505806]
[1718089874571,0.77541162,67767.0,67766.0,0.03505806]
[1718089874792,0.79541162,67767.0,67766.0,0.03505806]
[1718089875024,0.3053,67767.0,67766.0,0.03505806]
[1718089875265,0.6256,67767.0,67766.0,0.03505806]
[1718089875490,0.63698837,67767.0,67766.0,0.012]
[1718089876163,1.12368837,67767.0,67766.0,0.012]
[1718089881236,1.22368837,67767.0,67766.0,0.02938392]
[1718089881452,1.4780083,67767.0,67766.0,0.02938392]
[1718089881664,1.4780083,67767.0,67766.0,0.012]
[1718089882351,1.6780083,67767.0,67766.0,0.012]
[1718089882591,0.43,67760.0,67759.0,0.000946]
[1718089882819,1.53487989,67760.0,67759.0,0.000946]
[1718089883052,1.46093073,67760.0,67759.0,0.000946]
[1718089883551,1.54623073,67760.0,67759.0,0.000946]
[1718089885101,1.54623073,67760.0,67759.0,0.005946]
[1718089885310,1.54623073,67760.0,67759.0,0.008946]
[1718089885521,1.54623073,67760.0,67759.0,0.003946]
[1718089885729,1.54623073,67760.0,67759.0,0.000946]
[1718089885971,1.54623073,67760.0,67759.0,0.002946]
[1718089887070,1.38877077,67760.0,67759.0,0.000946]
[1718089887301,0.33135084,67760.0,67759.0,0.000946]
[1718089887566,0.33135084,67760.0,67759.0,0.23050644]
[1718089887567,0.23135084,67760.0,67759.0,0.23050644]
[1718089887800,0.00087526,67760.0,67759.0,0.87360644]
[1718089888016,0.128889,67760.0,67759.0,0.91754503]
[1718089888439,0.06813341,67760.0,67759.0,0.87360644]
[1718089888671,0.001,67760.0,67759.0,0.87360644]
[1718089889106,0.06513341,67764.0,67759.0,1.18221946]
[1718089889312,0.06513341,67764.0,67762.0,0.10979188]
[1718089889313,0.15043341,67764.0,67762.0,0.10979188]
[1718089889521,0.05480392,67764.0,67763.0,0.32956044]
[1718089890011,0.02,67767.0,67763.0,0.64859998]
[1718089890228,0.02,67766.0,67763.0,0.41903954]
[1718089890484,0.1,67768.0,67763.0,0.41903954]
[1718089890485,0.02,67765.0,67764.0,0.31734689]
[1718089890691,0.1053,67765.0,67764.0,0.72336031]
[1718089890902,0.0853,67765.0,67764.0,0.72336031]
[1718089891363,0.02,67767.0,67764.0,0.72336031]
[1718089891572,0.0853,67765.0,67764.0,0.49385011]
[1718089891787,0.0853,67765.0,67764.0,0.72336321]
[1718089892007,0.02,67767.0,67764.0,1.10056633]
[1718089892220,0.02,67767.0,67766.0,0.0658678]
[1718089892417,0.1053,67767.0,67766.0,0.29537881]
[1718089892628,0.1053,67767.0,67766.0,0.39537881]
[1718089893315,0.02,67767.0,67766.0,0.39537881]
[1718089893528,0.1053,67767.0,67766.0,0.32951101]
[1718089893802,0.1053,67767.0,67766.0,0.63552569]
[1718089894674,0.1053,67767.0,67766.0,0.64052569]
[1718089895331,0.1053,67767.0,67766.0,0.70634441]
[1718089895536,0.1053,67767.0,67766.0,0.71234441]
[1718089895745,0.1053,67767.0,67766.0,0.71234243]
[1718089897467,0.1053,67767.0,67766.0,0.64652371]
[1718089897904,0.1053,67767.0,67766.0,1.13735967]
[1718089898368,0.1053,67767.0,67766.0,1.0715842]
[1718089898607,0.0853,67767.0,67766.0,1.13736283]
[1718089898824,0.0853,67767.0,67766.0,1.0715842]
[1718089899466,0.5056,67767.0,67766.0,0.6995145]
[1718089899708,0.4856,67767.0,67766.0,0.6995145]
[1718089899939,0.48646,67767.0,67766.0,0.6995145]
[1718089900169,0.98216,67767.0,67766.0,0.72673926]
[1718089900844,1.00216,67767.0,67766.0,0.72673926]
[1718089901054,1.00216,67767.0,67766.0,0.42070881]
[1718089901507,1.00216,67767.0,67766.0,0.42078338]
[1718089901726,0.98216,67767.0,67766.0,0.42078338]
[1718089903961,0.89686,67767.0,67766.0,0.42078338]
[1718089904178,0.98216,67767.0,67766.0,0.42078338]
[1718089905512,0.98216,67767.0,67766.0,0.43868239]
[1718089905982,0.10086,67767.0,67766.0,0.43868239]
[1718089906199,0.18616,67767.0,67766.0,0.43868239]
[1718089906390,0.18616,67767.0,67766.0,0.50443994]
[1718089906966,0.18616,67767.0,67766.0,0.50000156]
[1718089907970,0.00086,67767.0,67766.0,0.50000156]
[1718089908171,0.08616,67767.0,67766.0,0.50000156]
[1718089908919,0.08616,67767.0,67766.0,0.47721518]
[1718089910418,0.00086,67767.0,67766.0,0.47721518]
[1718089910863,0.00086,67767.0,67766.0,0.24768934]
[1718089912418,0.00086,67767.0,67766.0,0.18193179]
[1718089914957,0.00086,67767.0,67766.0,0.20471635]
[1718089916892,0.00086,67767.0,67766.0,0.18193179]
[1718089918319,0.00086,67767.0,67766.0,0.45510441]
[1718089919371,0.00086,67767.0,67766.0,0.26960853]
[1718089919565,0.00086,67767.0,67766.0,0.45510441]
[1718089919781,0.00086,67767.0,67766.0,0.26960853]
[1718089919984,0.00086,67767.0,67766.0,0.45510441]
[1718089920190,0.00086,67767.0,67766.0,0.26960853]
[1718089920407,0.00086,67767.0,67766.0,0.45510441]
[1718089920828,0.00086,67767.0,67766.0,0.26960853]
[1718089921041,0.82466,67767.0,67766.0,0.45510441]
[1718089921243,0.82466,67767.0,67766.0,0.36742767]
[1718089921471,0.82466,67767.0,67766.0,0.18193179]
[1718089921686,0.90996,67767.0,67766.0,0.18193179]
[1718089922110,0.90996,67767.0,67766.0,0.21087949]
[1718089922519,0.90996,67767.0,67766.0,0.39637537]
[1718089925166,1.00996,67767.0,67766.0,0.39637537]
[1718089926627,1.00996,67767.0,67766.0,0.3997106]
[1718089929312,1.00996,67767.0,67766.0,0.21087949]
[1718089929542,1.00996,67767.0,67766.0,0.39965074]
[1718089930520,1.00996,67767.0,67766.0,0.48732748]
[1718089931513,1.00996,67767.0,67766.0,0.39965074]
[1718089934005,1.00996,67767.0,67766.0,0.39963491]
[1718089935146,1.00996,67767.0,67766.0,0.37068721]
[1718089935350,0.08616,67767.0,67766.0,0.39374601]
[1718089935770,0.08616,67767.0,67766.0,0.44719286]
[1718089936359,0.08616,67767.0,67766.0,0.44705894]
[1718089936675,0.08616,67767.0,67766.0,0.42400014]
[1718089942161,0.08616,67767.0,67766.0,0.42387101]
[1718089946805,0.00086,67767.0,67766.0,0.42387101]
[1718089947055,0.08616,67767.0,67766.0,0.42387101]
[1718089947621,0.08616,67767.0,67766.0,0.42379187]
[1718089950285,0.08616,67767.0,67766.0,0.44685079]
[1718089950938,0.08616,67767.0,67766.0,0.44695605]
[1718089951778,0.08616,67767.0,67766.0,0.42389713]
[1718089952195,0.08616,67767.0,67766.0,0.42387185]
[1718089952627,0.08616,67767.0,67766.0,0.23545862]
[1718089953436,0.10616,67767.0,67766.0,0.23545862]
[1718089953639,0.08616,67767.0,67766.0,0.23545862]
[1718089957830,0.10616,67767.0,67766.0,0.23545862]
[1718089958492,0.18616,67767.0,67766.0,0.23545862]
[1718089959618,0.18616,67767.0,67766.0,0.23561061]
[1718089960302,0.15204471,67767.0,67766.0,0.23561061]
[1718089961822,0.15204471,67767.0,67766.0,0.23562]
[1718089964503,0.17204471,67767.0,67766.0,0.23562]
[1718089964730,0.87206464,67767.0,67766.0,0.23562]
[1718089964958,1.18506464,67767.0,67766.0,0.32359084]
[1718089965171,1.18506464,67767.0,67766.0,0.30160659]
[1718089965382,1.18592464,67767.0,67766.0,0.23562]
[1718089966061,1.18592464,67767.0,67766.0,0.22462]
[1718089966314,1.18592464,67767.0,67766.0,0.23062]
[1718089966581,1.18592464,67767.0,67766.0,0.23562]
[1718089966816,1.18592464,67767.0,67766.0,0.22462]
[1718089967466,1.18592464,67767.0,67766.0,0.22962]
[1718089968332,1.18592464,67767.0,67766.0,0.23362]
[1718089968552,1.13387993,67767.0,67766.0,0.23362]
[1718089968756,1.21917993,67767.0,67766.0,0.23362]
[1718089975968,0.00086,67767.0,67766.0,0.23362]
[1718089976198,0.00086,67767.0,67766.0,0.27760314]
[1718089976416,0.00086,67767.0,67766.0,0.23362]
[1718089976840,0.00086,67767.0,67766.0,0.22862]
[1718089977055,0.00086,67767.0,67766.0,0.23462]
[1718089977265,0.00086,67767.0,67766.0,0.48141588]
[1718089977515,0.26517993,67767.0,67766.0,0.48141588]
[1718089977756,1.03977993,67767.0,67766.0,0.4953004]
[1718089978008,1.12507993,67767.0,67766.0,0.40738098]
[1718089978221,1.12507993,67767.0,67766.0,0.40338098]
[1718089978447,1.14507993,67767.0,67766.0,0.46732649]
[1718089978662,1.14507993,67767.0,67766.0,0.46332649]
[1718089979120,1.14507993,67767.0,67766.0,0.46732649]
[1718089979362,1.14507993,67767.0,67766.0,0.46932649]
[1718089979568,1.12507993,67767.0,67766.0,0.5152243]
[1718089979774,1.14507993,67767.0,67766.0,0.5132243]
[1718089980011,1.05977993,67767.0,67766.0,0.50923886]
[1718089980215,1.12507993,67767.0,67766.0,0.51523886]
[1718089980438,1.03977993,67767.0,67766.0,0.44929335]
[1718089980666,1.14507993,67767.0,67766.0,0.44929335]
[1718089980893,1.14507993,67767.0,67766.0,0.51599688]
[1718089981557,1.14507993,67767.0,67766.0,0.48791021]
[1718089981779,1.14507993,67767.0,67766.0,0.24387668]
[1718089982022,1.24507993,67767.0,67766.0,0.43236541]
[1718089982462,1.24507993,67767.0,67766.0,0.47633372]
[1718089982705,1.24507993,67767.0,67766.0,0.47233372]